Cogmind - Beta 17 @@@ ROGUE MODE // 2026.08.02 @ 18:58:39 Player: Petvaria Result: Self-destructed Performance ------------- Evolutions (4) 2000 Regions Visited (7) 1400 Robots Destroyed (93) 465 Value Destroyed (3145) 3145 Prototype IDs (21) 420 Alien Tech Used (0) 0 Bonus (54) 54 TOTAL SCORE: 7484 Bonus ------- High Alert Combat Kills 11 Follower Combat Kills 197 Friendly Fire -154 Cogmind --------- Core Integrity 637/850 Matter 290/300 Energy 350/350 System Corruption 7% Temperature Cool (0) Movement Rolling (95) Ox3 Location -6/Lower Caves Parts ------- > --- POWER (2) -------- Angular Momentum Engine Light Angular Momentum Engine > --- PROPULSION (4) --- Maxwheels > --- UTILITY (5) ------ Scrap Engine Improved Heat Sink Huge Storage Unit > --- WEAPON (4+1) ----- Heavy Particle Cannon (+) Hpw. Thermal Ion Construct/G Heavy Hammer > --- INVENTORY (25) --- Improved Heat Sink Improved Heat Sink Advanced Sensor Array Energy Filter Light Armor Plating Force Field Beamcaster Remote Datajack Plasma Cutter Peak State ------------ > --- POWER ------------ Improved Ion Engine Micro Nuclear Core > --- PROPULSION ------- Maxwheels > --- UTILITY ---------- Scrap Engine Improved Heat Sink Advanced Heat Sink Huge Storage Unit > --- WEAPON ----------- Heavy Particle Cannon Heavy Particle Cannon Hpw. Thermal Ion Construct/G Heavy Hammer > --- INVENTORY -------- Angular Momentum Engine Light Angular Momentum Engine Improved Heat Sink Improved Heat Sink Advanced Sensor Array Energy Filter Light Armor Plating Force Field Gatling Laser Improved Proton Missile Launcher Remote Datajack Plasma Cutter [Rating: 81] Favorites ----------- Power Ion Engine Engine Ion Engine Power Core Micro Nuclear Core Propulsion Light Treads Treads Light Treads Wheel Compact Wheel Utility Huge Storage Unit Device Advanced Heat Sink Storage Huge Storage Unit Protection Hardened Light Armor Plating Weapon Heavy Particle Cannon Energy Gun Constructs Energy Cannon Heavy Particle Cannon Ballistic Gun Light Assault Rifle Launcher Improved Proton Missile Launcher Special Weapon Mining Laser Impact Weapon Heavy Hammer Build | -11 -10 -10 -8 -8 -8 -6 -6 ------- Run | Yrd Mat Sub Mat Sto Rec Fac Low Slots Evolved 8 | . . . 4 . . 4 . Power 1 | . . . . . . 1 . Propulsion 2 | . . . 2 . . . . Utility 3 | . . . 2 . . 1 . Weapon 2 | . . . . . . 2 . Parts Attached 74 | 6 5 9 28 18 2 4 2 Power 8 | 1 . 1 1 2 . 1 2 Engine 7 | 1 . 1 1 2 . . 2 Core 1 | . . . . . . 1 . Reactor . | . . . . . . . . Propulsion 25 | 2 . 4 12 6 1 . . Treads 17 | 2 . 2 7 6 . . . Leg . | . . . . . . . . Wheel 8 | . . 2 5 . 1 . . Hover . | . . . . . . . . Flight . | . . . . . . . . Utility 14 | 1 2 1 6 2 1 1 . Device 7 | . . . 3 2 1 1 . Storage 2 | 1 1 . . . . . . Processor . | . . . . . . . . Hackware . | . . . . . . . . Protection 5 | . 1 1 3 . . . . Artifact . | . . . . . . . . Weapon 27 | 2 3 3 9 8 . 2 . Energy Gun 10 | . . . 7 3 . . . Energy Cannon 5 | . . . 1 4 . . . Ballistic Gun 6 | 2 2 1 1 . . . . Ballistic Cannon . | . . . . . . . . Launcher 4 | . 1 1 . 1 . 1 . Special Weapon 1 | . . 1 . . . . . Impact Weapon 1 | . . . . . . 1 . Slashing Weapon . | . . . . . . . . Piercing Weapon . | . . . . . . . . Special Melee Weapon . | . . . . . . . . Unidentified Prototypes 6 | . . . 2 3 1 . . Parts Lost 28 | . . 4 15 3 . 5 1 Power 4 | . . . 1 1 . 2 . Propulsion 8 | . . 2 6 . . . . Utility 5 | . . 1 2 . . 1 1 Weapon 11 | . . 1 6 2 . 2 . Highest Loss Streak 5 | . . 2 5 1 . 3 1 To Critical Strikes . | . . . . . . . . Average Backups 9 | 2 8 14 6 6 7 11 9 Power . | . 1 . . 1 1 1 . Propulsion 1 | . 2 3 1 1 . . . Utility 1 | . . . . 2 3 4 6 Weapon 5 | . 5 10 3 2 3 2 . Tool/Special . | . . . . . . . . Unused Backups 25 | . . 7 2 4 . 5 7 Power 1 | . . . 1 . . . . Propulsion 2 | . . 1 . 1 . . . Utility 4 | . . . . . . . 4 Weapon 16 | . . 6 1 3 . 5 1 Tool/Special 2 | . . . . . . . 2 Average Slot Usage (%) 82 | . 91 95 78 97 72 52 53 Engine 9 | . 14 14 6 8 7 3 6 Treads 16 | . 28 14 19 33 14 . . Wheel 7 | . . 13 9 2 4 5 6 Device 8 | . . . 11 18 11 13 15 Storage 10 | . 14 14 9 9 7 5 6 Protection 7 | . 5 9 4 9 7 1 . Energy Gun 1 | . . . 6 3 . . 6 Energy Cannon 6 | . . . . 13 16 12 6 Ballistic Gun 12 | . 27 27 9 . . 3 . Peak Build Rating 81 | 6 8 33 47 52 63 81 81 Average Rating 38 | 5 7 18 38 48 56 74 74 On Entrance 34 | . 6 8 33 47 48 63 71 Avg Prop Armor Cover (%) 13 | . . 11 17 17 . 17 . Naked Turns . | . . . . . . . . Heaviest Build 119 | 12 92 93 104 107 106 116 119 Greatest Support 85 | 40 40 40 80 85 82 30 30 Greatest Overweight (x) 36 | . 2 5 5 6 3 36 3 Average Overweight (x) 3 | . 1 4 3 1 2 3 3 Largest Inventory Capacity 25 | 8 25 25 25 25 25 25 25 Average Capacity 24 | 7 23 25 25 25 25 25 25 Most Carried 25 | 4 11 25 25 25 25 14 11 Average Carried 18 | 2 8 20 24 24 14 11 9 Final Capacity 25 | 8 25 25 25 25 25 25 25 Final Carried 25 | 4 11 25 25 25 9 10 9 Scrap Engine Consumption 23 | . . . . . 9 14 . Constructs Created 1 | . . . . . . 1 . Constructs Modified 6 | . . . . . . 6 . Class Distribution -------------------- 64% | Mutant 18% | Scavenger-Mutant 6% | Gunner 6% | Commander-Mutant Dominant Class ---------------- Mutant | -10/Materials Mutant | -10/Subcaves Scavenger-Mutant | -8/Materials Commander-Mutant | -8/Storage Mutant | -8/Recycling Gunner | -6/Factory Mutant | -6/Lower Caves Resources | -11 -10 -10 -8 -8 -8 -6 -6 ----------- Run | Yrd Mat Sub Mat Sto Rec Fac Low Matter Collected 1673 | 264 44 428 512 170 40 187 28 Remotely . | . . . . . . . . Salvage Created 4033 | 64 121 328 1354 775 228 1095 68 Parts 199 | . 6 21 68 49 11 40 4 Haulers Intercepted 9 | . . . 1 6 . 2 . Recyclers Shooed 1 | . . . . 1 . . . Parts Field Recycled . | . . . . . . . . Retrieved Matter . | . . . . . . . . Parts Self-Destructed 21 | . . 6 . . . . 15 Prevented . | . . . . . . . . Parts Restored . | . . . . . . . . Kills | -11 -10 -10 -8 -8 -8 -6 -6 ------- Run | Yrd Mat Sub Mat Sto Rec Fac Low Combat Hostiles Destroyed 70 | . 4 10 26 10 4 15 1 Guns 33 | . 4 6 23 . . . . Cannons 24 | . . . 1 10 4 8 1 AOE 11 | . . 4 2 . . 5 . Classes Destroyed 15 | 1 2 5 5 1 . 1 . Worker 8 | . . . 6 2 . . . Builder 1 | . . . . 1 . . . Hauler 9 | . . . 1 6 . 2 . Recycler 3 | 1 . . . . 1 1 . Mechanic 1 | . . . 1 . . . . Turret 1 | . . 1 . . . . . Swarmer 12 | . 2 4 . 2 . 4 . Grunt 23 | . 2 . 18 1 . 2 . Duelist 1 | . . . 1 . . . . Sentry 17 | . . 1 6 7 1 2 . Hunter 6 | . . . 1 . . 4 1 Programmer 3 | . . . . . . 3 . Artisan 1 | . . 1 . . . . . Subdweller 8 | . . 5 . . 3 . . Scientist 1 | . . 1 . . . . . Best Kill Streak 7 | 1 2 4 7 4 1 4 1 Combat Bots Only 4 | . 2 4 3 2 1 4 1 Max Kills in Single Turn 3 | 1 1 3 3 2 1 3 1 Gunslinging . | . . . . . . . . Exploded 3 | . . 2 1 . . 3 . Melee . | . . . . . . . . Uniques/NPCs Destroyed . | . . . . . . . . Combat | -11 -10 -10 -8 -8 -8 -6 -6 -------- Run | Yrd Mat Sub Mat Sto Rec Fac Low Hostile Shots Fired 506 | . 44 88 171 46 5 143 9 Missed 145 | . 9 35 46 12 . 42 1 Hits 361 | . 35 53 125 34 5 101 8 Projectile 361 | . 35 53 125 34 5 101 8 AOE 6 | . . 2 1 1 . 2 . Critical Strikes 7 | . . . 4 1 . 2 . Part Disruptions 5 | . . . . . . 5 . Damage Taken 5364 | . 347 613 2113 575 81 1493 142 Core 765 | . 18 155 334 45 . 178 35 Absorbed by Shields . | . . . . . . . . Regen/Repaired (Parts) 110 | . . . . . . 110 . Core Remaining (%) 53 | 100 . 30 . . 31 . . Volleys Fired 272 | 2 18 44 112 42 12 38 4 Largest 3 | 2 2 2 2 2 2 3 1 Hottest 208 | 40 40 100 125 150 150 208 75 Shots Fired 520 | 4 34 74 212 73 24 94 5 Gun 343 | 4 32 67 209 7 . 24 . Cannon 160 | . . . 1 66 24 64 5 Launcher 12 | . 2 2 2 . . 6 . Special 5 | . . 5 . . . . . Kinetic 236 | 4 32 67 115 . . 18 . Thermal 269 | . . 5 95 73 24 67 5 Explosive 6 | . 2 2 2 . . . . Electromagnetic 9 | . . . . . . 9 . Robot Hit Streak 19 | 4 17 15 17 15 2 19 5 Robot Miss Streak 4 | . 3 3 3 3 2 4 . Penetration Max 1 | . . . . . . 1 . Secondary Targets 4 | . 1 . 3 . . . . Max Gunslinging Chain 1 | . 1 . 1 . . . . Shots Hit Robots 346 | 4 22 46 155 47 6 62 4 Core Hits 154 | 2 6 22 66 23 5 28 2 Critical Kills 4 | . . 2 2 . . . . Critical Parts Destroyed 1 | . . . 1 . . . . Critical Strikes 9 | . . 2 7 . . . . Burn 4 | . . . 4 . . . . Destroy 5 | . . 2 3 . . . . Melee Attacks 6 | . . . . . . 6 . Impact 6 | . . . . . . 6 . Slashing . | . . . . . . . . Piercing . | . . . . . . . . Sneak Attacks . | . . . . . . . . Combat Hostiles . | . . . . . . . . Follow-up Attacks . | . . . . . . . . Damage Inflicted 7674 | 27 287 748 3160 1161 150 2041 100 Guns 4042 | 27 282 568 2795 76 . 294 . Cannons 2431 | . . . 23 1072 150 1086 100 Explosions 858 | . . 156 292 . . 410 . Melee 251 | . . . . . . 251 . Ramming 68 | . 5 . 50 13 . . . Kinetic 2551 | 27 282 568 1480 . . 194 . Thermal 3897 | . . 24 1338 1148 150 1137 100 Explosive 448 | . . 156 292 . . . . Electromagnetic 459 | . . . . . . 459 . Impact 251 | . . . . . . 251 . Slashing . | . . . . . . . . Piercing . | . . . . . . . . Highest Corruption 7 | . . . . . . 7 7 Average Corruption 2 | . . . . . . 1 7 Corruption Purged . | . . . . . . . . Corruption Blocked . | . . . . . . . . Effects 11 | . . . . . . 5 6 Message Errors 1 | . . . . . . . 1 Matter Fused 4 | . . . . . . 3 1 Heat Flow Errors 1 | . . . . . . . 1 Energy Discharges 1 | . . . . . . 1 . Data Loss (minor) 2 | . . . . . . . 2 Misfires 1 | . . . . . . . 1 Weapon Failures 1 | . . . . . . 1 . Overload Shots . | . . . . . . . . Overflow Damage 90 | . . . . . . 90 . Projectiles . | . . . . . . . . Explosions . | . . . . . . . . Melee 90 | . . . . . . 90 . Knockbacks 2 | . . . . . . 2 . Impact 2 | . . . . . . 2 . Kinetic . | . . . . . . . . Secondary . | . . . . . . . . Self-Inflicted Damage 1 | . . . 1 . . . . Shots . | . . . . . . . . Rammed 7 | . 1 . 6 . . . . Targets Rammed 8 | . 1 . 6 1 . . . Kicked . | . . . . . . . . Crushed 1 | . . . . 1 . . . Highest Temperature 189 | . 5 . 141 16 189 96 84 Average Temperature 53 | . 5 . 48 10 91 28 15 Received Heat Transfer 1773 | . 120 297 1017 225 15 99 . Siege Activations . | . . . . . . . . Martial Activations . | . . . . . . . . Shielding Activations . | . . . . . . . . Robots Disrupted . | . . . . . . . . Combat Hostiles . | . . . . . . . . Robots Corrupted 2 | . . . . . . 2 . Combat Hostiles 2 | . . . . . . 2 . Parts Fried 11 | . . . . . . 11 . Impact Corruptions 5 | . . . . . . 5 . Robots Melted 1 | . . . . . . 1 . Combat Hostiles . | . . . . . . . . Parts Melted 13 | . . . 2 4 1 5 1 Heat Transferred 6754 | . . 50 2880 1924 222 1530 148 Parts Sabotaged . | . . . . . . . . Parts Stolen . | . . . . . . . . Parts Stripped . | . . . . . . . . Power Chain Reactions 1 | . . . . . . 1 . Alert | -11 -10 -10 -8 -8 -8 -6 -6 ------- Run | Yrd Mat Sub Mat Sto Rec Fac Low Maximum Alert Level 2 | . . . 2 1 . 1 . Low Security (%) 68 | 100 100 . 62 74 100 3 . Level 1 31 | . . . 37 25 . 96 . Level 2 . | . . . . . . . . Level 3 . | . . . . . . . . Level 4 . | . . . . . . . . Level 5 . | . . . . . . . . High Security . | . . . . . . . . Max Security . | . . . . . . . . Peak Influence 401 | 5 57 . 401 251 170 379 . Initial 367 | . . . 1 161 83 367 . Average 133 | . 8 . 160 159 23 310 . Influence Increases 2952 | 5 121 210 901 680 233 772 30 Destroy 0b10 Robot/C 1400 | . 80 120 520 340 20 300 20 Destroy 0b10 Robot/NC 115 | 5 . . 40 50 5 15 . Destroy Leader 350 | . 10 . 122 124 . 84 10 Allied During Kill 114 | . . . . 114 . . . Successful Hack 20 | . . . 13 . . 7 . Select Force Hacks 180 | . . . . . 180 . . Disable Machine 75 | . . . 15 30 15 15 . Destroy Structure 68 | . 16 . 26 7 13 6 . Advance Influence 300 | . . . . . . 300 . Partial Spotted 30 | . . . . . . 30 . Lose Combat Pursuer 300 | . 15 90 165 15 . 15 . Influence Decreases 2808 | 5 80 248 520 849 286 625 195 Entered New Map 588 | . . 21 2 223 132 95 115 Time Decay 1698 | 5 80 207 386 416 154 380 70 Search Patrol Dispatched 100 | . . . . . . 100 . Lost Part 242 | . . 20 132 30 . 50 10 Lost Ally 180 | . . . . 180 . . . Squads Dispatched 9 | . . . 1 3 . 5 . Investigation 1 | . . . 1 . . . . Extermination 2 | . . . . . . 2 . Reinforcement 3 | . . . . 1 . 2 . Assault . | . . . . . . . . Garrison 3 | . . . . 2 . 1 . Intercept . | . . . . . . . . Searches Triggered 1 | . . . . . . 1 . Construction Impeded 1 | . . . . . . 1 . Haulers Reinforced . | . . . . . . . . Active Scanning Responses . | . . . . . . . . Cargo Convoy Interrupts 1 | . . . . . . 1 . Stealth | -11 -10 -10 -8 -8 -8 -6 -6 --------- Run | Yrd Mat Sub Mat Sto Rec Fac Low Distress Signals 15 | . 1 . 10 . 3 1 . Communications Jammed . | . . . . . . . . Distress Signals . | . . . . . . . . Times Spotted 129 | . 9 12 47 22 4 34 1 Peak Tracking Total 15 | . 4 4 7 4 1 15 1 Tactical Retreats 14 | . 1 5 6 1 . 1 . Traps | -11 -10 -10 -8 -8 -8 -6 -6 ------- Run | Yrd Mat Sub Mat Sto Rec Fac Low Traps Triggered 1 | . . 1 . . . . . Indirectly . | . . . . . . . . Trap Hack Attempts . | . . . . . . . . Triggered . | . . . . . . . . Disarmed . | . . . . . . . . Reprogrammed . | . . . . . . . . Reused . | . . . . . . . . Traps Extracted . | . . . . . . . . Installed . | . . . . . . . . Triggered . | . . . . . . . . Machines | -11 -10 -10 -8 -8 -8 -6 -6 ---------- Run | Yrd Mat Sub Mat Sto Rec Fac Low Machines Disabled 7 | . . 2 1 2 1 1 . Max in Single Turn 1 | . . 1 1 1 1 1 . Machines Repaired . | . . . . . . . . Machines Dismantled . | . . . . . . . . Machines Sabotaged . | . . . . . . . . Overloaded Fab Kills . | . . . . . . . . Hacking | -11 -10 -10 -8 -8 -8 -6 -6 --------- Run | Yrd Mat Sub Mat Sto Rec Fac Low Machines Accessed 20 | . . 4 6 1 7 2 . Terminals 7 | . . . 6 1 . . . Fabricators 1 | . . . . . . 1 . Repair Stations . | . . . . . . . . Recycling Units 6 | . . . . . 6 . . Scanalyzers . | . . . . . . . . Garrison Access 1 | . . . . . . 1 . Total Hacks 41 | . . 7 15 3 8 8 . Successful 21 | . . 7 2 1 8 3 . Failed 20 | . . . 13 2 . 5 . Catastrophic 5 | . . . 5 . . . . Database Lockouts . | . . . . . . . . Manual 23 | . . . 12 2 6 3 . Terminals 18 | . . . 15 3 . . . Fabricators 6 | . . . . . . 6 . Repair Stations . | . . . . . . . . Recycling Units 6 | . . . . . 6 . . Scanalyzers . | . . . . . . . . Garrison Access 2 | . . . . . . 2 . Terminal Hacks 12 | . . 7 2 1 2 . . Record 4 | . . 4 . . . . . Open Door 2 | . . 1 . 1 . . . Branch Access Points 1 | . . . 1 . . . . Unreport Threat 1 | . . . 1 . . . . Proto ID Catalog 1 | . . 1 . . . . . Release Object 3 | . . 1 . . 2 . . Fabricator Hacks 2 | . . . . . . 2 . Network Status 1 | . . . . . . 1 . Build 1 | . . . . . . 1 . Repair Station Hacks . | . . . . . . . . Recycling Unit Hacks . | . . . . . . . . Scanalyzer . | . . . . . . . . Garrison Access Hacks . | . . . . . . . . Unauthorized Hacks 7 | . . . . . 6 1 . Terminals . | . . . . . . . . Fabricators 1 | . . . . . . 1 . Prioritize 1 | . . . . . . 1 . Repair Stations . | . . . . . . . . Recycling Units 6 | . . . . . 6 . . Tunnel 6 | . . . . . 6 . . Scanalyzers . | . . . . . . . . Garrison Access . | . . . . . . . . Data Cores Recovered . | . . . . . . . . Used . | . . . . . . . . Hacking Detections 10 | . . . 6 2 . 2 . Full Trace Events 2 | . . . 2 . . . . Feedback Events . | . . . . . . . . Feedback Blocked . | . . . . . . . . Robot Schematics Acquired . | . . . . . . . . Robots Built . | . . . . . . . . Authchips . | . . . . . . . . Time . | . . . . . . . . Total Robot Build Rating . | . . . . . . . . Part Schematics Acquired . | . . . . . . . . Parts Built 2 | . . . . . . 2 . Authchips . | . . . . . . . . Time 106 | . . . . . . 106 . Total Part Build Rating 12 | . . . . . . 12 . Part Studies Acquired . | . . . . . . . . Parts Repaired . | . . . . . . . . Time . | . . . . . . . . Parts Recycled . | . . . . . . . . Recycled Matter . | . . . . . . . . Retrieved Matter . | . . . . . . . . Retrieved Components . | . . . . . . . . Parts Scanalyzed . | . . . . . . . . Part Schematics Acquired . | . . . . . . . . Parts Damaged . | . . . . . . . . Bothacking | -11 -10 -10 -8 -8 -8 -6 -6 ------------ Run | Yrd Mat Sub Mat Sto Rec Fac Low Used RIF Installer . | . . . . . . . . Robots Hacked . | . . . . . . . . Non-combat . | . . . . . . . . Combat . | . . . . . . . . Robot Hacks Applied . | . . . . . . . . Relay Couplers Released . | . . . . . . . . Fabnet Peak Effective % . | . . . . . . . . Robots Rewired . | . . . . . . . . Allies Hacked . | . . . . . . . . Hacks Repelled . | . . . . . . . . Allies | -11 -10 -10 -8 -8 -8 -6 -6 -------- Run | Yrd Mat Sub Mat Sto Rec Fac Low Total Allies 10 | . . . . 10 . . . Largest Group 10 | . . . . 10 . . . Highest-Rated Group 173 | . . . . 173 . . . Highest-Rated Ally 29 | . . . . 29 . . . Total Orders . | . . . . . . . . Ally Attacks 86 | . . . . 86 . . . Total Damage 1045 | . . . . 1045 . . . Kills 9 | . . . . 9 . . . Allies Corrupted . | . . . . . . . . Allies Melted . | . . . . . . . . Intel | -11 -10 -10 -8 -8 -8 -6 -6 ------- Run | Yrd Mat Sub Mat Sto Rec Fac Low Active Infowar (turns) . | . . . . . . . . Robot Analysis Total . | . . . . . . . . Derelict Logs Recovered 2 | . . 1 . . . . 1 Drone Launches . | . . . . . . . . Drone Recoveries . | . . . . . . . . Exploration | -11 -10 -10 -8 -8 -8 -6 -6 ------------- Run | Yrd Mat Sub Mat Sto Rec Fac Low Turns Passed 7512 | 128 472 2454 1159 1017 1255 882 145 Spaces Moved 3468 | 76 133 969 374 353 947 493 123 Core 24 | 12 . . . . . 12 . Treads 760 | 64 133 7 77 277 202 . . Legs . | . . . . . . . . Wheels 2684 | . . 962 297 76 745 481 123 Hover . | . . . . . . . . Flight . | . . . . . . . . Fastest Speed 50 | 50 160 175 115 145 95 95 95 Average Speed 162 | 142 299 176 179 222 125 136 95 Slowest Speed 1850 | 160 320 320 480 238 236 1850 95 Overloaded Moves . | . . . . . . . . Propulsion Burnouts . | . . . . . . . . Robots Hopped . | . . . . . . . . Potential Cave-ins . | . . . . . . . . Cave-ins Triggered . | . . . . . . . . Exploration Rate (%) 39 | 4 27 54 34 56 97 14 30 Regions Visited 7 Branch Regions 4 Pre-discovered Areas 6 | . . . . . 6 . . Known Exits Taken 2 | . . . 1 . . 1 . Unknown Exits Taken 5 | 1 1 1 . 1 1 . . Scrap Searched 7 | . . 5 . . . . 2 Spaces Dug 8 | . . . . . 6 2 . Terrain Destroyed 83 | . 20 17 22 5 14 5 . Melee 1 | . . . . . . 1 . Projectile 25 | . . . 4 5 14 2 . AOE 57 | . 20 17 18 . . 2 . Terrain Rammed . | . . . . . . . . Walls Destroyed . | . . . . . . . . Machines Disabled . | . . . . . . . . Actions | -11 -10 -10 -8 -8 -8 -6 -6 --------- Run | Yrd Mat Sub Mat Sto Rec Fac Low Total 4822 | 93 171 1640 646 514 996 615 147 Wait 840 | . 5 584 89 66 27 52 17 Move 3461 | 75 132 968 373 352 946 492 123 Hop . | . . . . . . . . Pick Up 76 | 10 9 15 19 9 2 11 1 Fast Attach 21 | . . . 9 12 . . . Attach 39 | 6 2 4 14 1 2 8 2 Detach 7 | . . . 1 1 2 3 . Swap 30 | . 3 10 10 7 . . . Drop 61 | . 1 15 13 22 5 5 . Fire 272 | 2 18 44 112 42 12 38 4 Melee 6 | . . . . . . 6 . Ram 1 | . . . 1 . . . . Kick . | . . . . . . . . Crush 7 | . 1 . 5 1 . . . Escape Stasis . | . . . . . . . . Rewire 1 | . . . . 1 . . . Trap . | . . . . . . . . Miscellaneous . | . . . . . . . . Route ------- -11/Scrapyard -10/Materials -10/Subcaves (discovered 2 exits: *Mat / *Rec) -8/Materials -8/Storage -8/Recycling -6/Factory (discovered 6 exits: Fac x4 / *Low x2) -6/Lower Caves History --------- Turn | Location | Event 6 | -11/Scrapyard | Discovered new exit (range 15) 129 | -11/Scrapyard | Entered Materials 313 | -10/Materials | Build established: Mutant 588 | -10/Materials | Discovered new exit (range 5) 601 | -10/Materials | Entered Subcaves 602 | -10/Subcaves | Approached by a straggling Scientist 654 | -10/Subcaves | Discovered new exit (range 16) 686 | -10/Subcaves | Learned Materials stockpile data 970 | -10/Subcaves | Visited 4L-MR0's lab 987 | -10/Subcaves | Found Maxwheels 1451 | -10/Subcaves | Shifting Twisted Machinery released Sub. Optics 1617 | -10/Subcaves | Shifting Twisted Machinery released Battle Cannon 1690 | -10/Subcaves | Core integrity fell below 50% 2459 | -10/Subcaves | Found SUBCON Basin 2763 | -10/Subcaves | Visited Clippyterm 2768 | -10/Subcaves | Learned Research security intel 2768 | -10/Subcaves | Learned 40 Factory zone layouts 3036 | -10/Subcaves | Discovered new exit (range 11) 3055 | -10/Subcaves | Entered Materials 3055 | -8/Materials | Evolved 4 slots: Propulsion x2, Utility x2 3738 | -8/Materials | Build established: Scavenger-Mutant 3821 | -8/Materials | Core integrity fell below 50% 3854 | -8/Materials | Discovered new exit (range 9) 3920 | -8/Materials | Lost 5 parts (3n1u1w) 4162 | -8/Materials | Identified exit to Storage 4214 | -8/Materials | Entered Storage 4488 | -8/Storage | Assisted by bots powering up and referring to "LRC-V3" 4772 | -8/Storage | Build established: Commander-Mutant 5037 | -8/Storage | Garrison activated, responded to threat 5068 | -8/Storage | Lost 3 allies 5224 | -8/Storage | Used back door to open Recycling access 5224 | -8/Storage | Discovered new exit (range 4) 5231 | -8/Storage | Entered Recycling 5431 | -8/Recycling | Build established: Scavenger-Mutant 5742 | -8/Recycling | Attached Maxwheels, gained temporary slots: Weapon x2 5745 | -8/Recycling | Found Prototype Device 5746 | -8/Recycling | Identified Scrap Engine 5749 | -8/Recycling | Entered Scraplab 5924 | -8/Recycling | Discovered new exit (range 16) 6052 | -8/Recycling | Build established: Mutant 6486 | -8/Recycling | Entered Factory 6486 | -6/Factory | Evolved 4 slots: Power x1, Utility x1, Weapon x2 6487 | -6/Factory | Identified exit to Factory 6487 | -6/Factory | Identified exit to Lower Caves 6554 | -6/Factory | Fabricated KE Penetrator (x2) 6622 | -6/Factory | Garrison activated, responded to threat 6836 | -6/Factory | Search patrols dispatched 7302 | -6/Factory | Build established: Gunner 7358 | -6/Factory | Cargo convoy interrupted 7368 | -6/Factory | Entered Lower Caves 7386 | -6/Lower Caves | Learned 4 Factory zone layouts 7397 | -6/Lower Caves | Lost 3 parts (1p2w) 7513 | -6/Lower Caves | Self-destructed Last Messages --------------- Penetrated by Slug. Adv. Heat Sink destroyed. Slug penetrates Wall. Penetrated by Slug. Lgt. Fission Core melted. H-66 Slayer destroyed. Phase Shifter fries itself beyond repair. Gauss Rifle fries itself beyond repair. Flexi-carbon Leg fries itself beyond repair. Acquired 15 matter. Flexi-carbon Leg fries itself beyond repair. System corrupted: FCS attempts to trigger Hvy. Particle Cannon. System corrupted: Hvy. Particle Cannon misfires. Searching scrap... Found Recalibrator. Found Mace. Found Com. Matter Pod. Found 52 Matter. System corrupted: Matter fused (-10). Map ----- +----------------------------------------------------+ | ?????????????????????????????????????????????????? | | ?????????????????????????????????????????????????? | | ?????????????????????????????????????????????????? | | ?????????????????????????????????????????????????? | | ?????????????????????????????????????????????????? | | ?????????????????????????????????????????????????? | | ?????????????????????????????????????????????????? | | ?????????????????????????????????????????????????? | | ?????????????????????????????????????????????????? | | ?????????????????????????????????????????#### ???? | | ???????????????????????????????????????### ???? | | ???????????????????????????????????????? ???? | | ??????????????????????????????? #####???? ???? | | ??????????????????????????????? ##???# ???? | | ???????????????????????????????# ????# ???? | | ???????????????????????????????# ????# #??? | | ???????????????????????????????? ?????# ##?? | | ???????????????????????????????? #?????# ##? | | ????????????????????????????????? ##?###?# ## | | ?????????????????????????????????# ?? #??# | | ?????????????????????#???????????# ##?# #??# | | ?????????????????????? ??????????# #?# #?## | | ??????????????????????# ????###### #?# ### | | ??????????????????????# ##### ### | | ????????????????# # / ! | | ???????????????# @ # %!### | | ????????????# ##### # # # ####?## | | ??????????????????????## # # # #?????#### | | ???????????????????????## # #????????# | | ???????????????????????# #??????? | | ???????????????????????# # ????? | | ?????????????????????? ???? ### | | ????????????????????? ## # # ??? ??? | | ????????????????????## # ?? ??? | | ?????????????????????# # # #?? #??? | | ?????????????????????# #?? ???? | | ????????????????????? # # ??? ???? | | ???????????????????? # ## ######???????? | | ???????????????????? ##?# # ### #????????????? | | ???????????????????????????#? ???# ?????????????? | | ????????????????????????????? ????#??????????????? | | ????????????????????????????? ???????????????????? | | ?????????????????????????????????????????????????? | | ?????????????????????????????????????????????????? | | ?????????????????????????????????????????????????? | | ?????????????????????????????????????????????????? | | ?????????????????????????????????????????????????? | | ?????????????????????????????????????????????????? | | ?????????????????????????????????????????????????? | | ?????????????????????????????????????????????????? | +----------------------------------------------------+ Best States ------------- Heat Dissipation 72 Energy Generation 31 Energy Capacity 350 Matter Stores 300 Matter Capacity 300 Sight Range 16 Terrain Scan Density 10 Armor Coverage 150 Evasion (%) 50 Recoil Reduction 4 Item Schematics ----------------- None Robot Schematics ------------------ None Fabricated ------------ KE Penetrator | x2 | -6/Factory | Preloaded Repaired ---------- Nothing Studied --------- None Alien Tech Used ----------------- None Achievements -------------- None Challenges ------------ None Game ------ Seed WeaponsThiefTreads Manual? 1 Play Time 00:43:20 Cumulative 542.7 hours Start 2026.08.02 @ 18:15:53 End 2026.08.02 @ 18:58:39 Sessions 1 Manual Loads 0 Difficulty Rogue Special Mode None Game No. 311 Rogue 311 Adventurer 0 Explorer 0 Win Type - Total 36 Types 17/2/7/2/1/1/1/2/1/2 Lore% 97 Gallery% 92 Achievement% 85 Wizard Run 0 Options --------- Layout 1 ASCII 0 Keyboard 0 Movement Numpad Keybinds 0 Fullscreen 1 Font 24/Proggy Map View 50x35 Zoom Use 0% Tactical HUD 0 Map Filters NONE Filters NONE Steam 1 RUN: 72390e2c-ad41-4abd-8c91-04da85add4d4